fUST/lending_fUST_20251117
["ID","MTS","AMOUNT","RATE_DAILY","PERIOD"]
[394141147,1763319038356,-3784.29,0.00048485,2]
[394141149,1763319038365,-680.05770256,0.00048502,60]
[394141151,1763319038376,-15345.71,0.00048503,7]
[394141153,1763319038385,-500.0,0.00048803,60]
[394141155,1763319038395,-500.0,0.00048925,60]
[394141157,1763319038405,-500.0,0.00048935,2]
[394141159,1763319038415,-54683.97659192,0.0004913,7]
[394141172,1763319038544,-54284.93340808,0.0004913,7]
[394141174,1763319038555,-500.0,0.00049179,60]
[394141176,1763319038566,-685.7032807,0.00049214,60]
[394141179,1763319038576,-10000.0,0.00049215,2]
[394141181,1763319038585,-500.0,0.00049315,2]
[394141182,1763319038595,-1000.0,0.00049315,2]
[394141184,1763319038605,-1000.0,0.00049315,2]
[394141186,1763319038615,-500.0,0.00049315,14]
[394141189,1763319038625,-1420.09,0.00049315,7]
[394141190,1763319038637,-3530.7,0.00049315,2]
[394141192,1763319038647,-500.0,0.00049315,120]
[394141194,1763319038656,-512.34,0.00049315,2]
[394141196,1763319038666,-500.0,0.00049315,120]
[394141198,1763319038676,-812.61,0.00049315,2]
[394141200,1763319038685,-1000.0,0.00049315,2]
[394141202,1763319038694,-500.0,0.00049315,2]
[394141204,1763319038703,-500.0,0.00049315,7]
[394141206,1763319038714,-5026.52,0.00049315,3]
[394141208,1763319038726,-500.0,0.00049315,10]
[394141210,1763319038736,-3060.12,0.00049315,3]
[394141212,1763319038745,-524.16,0.00049315,120]
[394141214,1763319038756,-151.0,0.00049315,120]
[394141217,1763319038766,-1277.58,0.00049315,7]
[394141218,1763319038776,-500.0,0.00049315,7]
[394141221,1763319038786,-500.0,0.00049315,2]
[394141222,1763319038796,-587.94076908,0.00049315,7]
[394141224,1763319038806,-610.47474071,0.00049315,2]
[394141226,1763319038816,-546.92967083,0.0004937,120]
[394141228,1763319038826,-426.84289324,0.0004943,4]
[394141230,1763319038835,-134441.07248117,0.0004944,30]
[394141395,1763319040483,-500.0,0.00049315,120]
[394141396,1763319040493,-6417.25379342,0.0004944,30]
[394141397,1763319040504,-39905.15979912,0.0004944,30]
[394141931,1763319045756,-4365.0,0.0004944,30]
[394143371,1763319231450,747.582808,0.00013699,2]
[394143372,1763319318220,638.0,0.00038015,20]
[394143376,1763319661662,215.05,5e-05,2]
[394143377,1763319661947,215.05,5.2e-05,2]
[394143378,1763319662234,215.05,5.3e-05,2]
[394143379,1763319662524,215.05,5.5e-05,2]
[394143380,1763319663554,215.05,5.7e-05,2]
[394143381,1763319668278,215.05,5.8e-05,2]
[394143382,1763319668787,215.05,6e-05,2]
[394143383,1763319669271,215.05,6.2e-05,2]
[394143384,1763319669892,215.05,6.3e-05,2]
[394143385,1763319670252,215.05,6.5e-05,2]
[394143386,1763319670587,215.05,6.7e-05,2]
[394143387,1763319670982,215.05,6.8e-05,2]
[394143388,1763319671302,215.05,7e-05,2]
[394143389,1763319671630,215.05,7.1e-05,2]
[394143390,1763319672007,215.05,7.3e-05,2]
[394143391,1763319672317,215.05,7.5e-05,2]
[394143392,1763319672644,215.05,7.6e-05,2]
[394143393,1763319672927,215.05,7.8e-05,2]
[394143394,1763319673845,215.05,8e-05,2]
[394143395,1763319674170,166.467192,8.1e-05,2]
[394143396,1763319674202,48.582808,8.1e-05,2]
[394143397,1763319674449,215.05,8.3e-05,2]
[394143398,1763319674722,215.05,8.5e-05,2]
[394143399,1763319675013,215.05,8.6e-05,2]
[394143400,1763319675345,215.05,8.8e-05,2]
[394143401,1763319675669,215.05,9e-05,2]
[394143402,1763319675991,215.05,9.1e-05,2]
[394143403,1763319676302,215.05,9.3e-05,2]
[394143404,1763319676620,215.05,9.5e-05,2]
[394143405,1763319676915,215.05,9.6e-05,2]
[394143406,1763319677253,215.05,9.8e-05,2]
[394143407,1763319677533,215.05,0.0001,2]
[394143408,1763319678077,215.05,0.000101,2]
[394143409,1763319678317,215.05,0.000103,2]
[394143410,1763319678591,215.05,0.000105,2]
[394143411,1763319678862,215.05,0.000106,2]
[394143412,1763319679299,215.05,0.000108,2]
[394143413,1763319679580,215.05,0.00011,2]
[394143414,1763319679860,215.05,0.000111,2]
[394143415,1763319680137,215.05,0.000113,2]
[394143416,1763319681302,215.05,0.000114,2]
[394143417,1763319681583,215.05,0.000116,2]
[394143418,1763319681856,215.05,0.000118,2]
[394143419,1763319682144,215.05,0.000119,2]
[394143420,1763319682450,215.05,0.000121,2]
[394143421,1763319682773,215.05,0.000123,2]
[394143422,1763319683045,215.05,0.000124,2]
[394143423,1763319683322,215.05,0.000126,2]
[394143424,1763319683606,215.05,0.000128,2]
[394143425,1763319683887,215.05,0.000129,2]
[394143426,1763319684202,215.05,0.000131,2]
[394143427,1763319684476,999.917192,5e-05,2]
[394143428,1763319684513,9752.822808,5e-05,2]
[394143429,1763319721642,177.11,5e-05,2]
[394143430,1763319721983,70.067192,5.2e-05,2]
[394143431,1763319722020,107.042808,5.2e-05,2]
[394143432,1763319722321,177.11,5.3e-05,2]
[394143433,1763319722599,177.11,5.5e-05,2]
[394143434,1763319722897,177.11,5.7e-05,2]
[394143435,1763319723188,177.11,5.8e-05,2]
[394143436,1763319723479,177.11,6e-05,2]
[394143437,1763319723820,177.11,6.2e-05,2]
[394143438,1763319724280,177.11,6.3e-05,2]
[394143439,1763319725647,177.11,6.5e-05,2]
[394143440,1763319725929,177.11,6.7e-05,2]
[394143441,1763319726875,177.11,6.8e-05,2]
[394143442,1763319727202,177.11,7e-05,2]
[394143443,1763319727509,177.11,7.1e-05,2]
[394143444,1763319727781,177.11,7.3e-05,2]
[394143445,1763319728122,177.11,7.5e-05,2]
[394143446,1763319728424,177.11,7.6e-05,2]
[394143447,1763319728700,177.11,7.8e-05,2]
[394143448,1763319728976,177.11,8e-05,2]
[394143449,1763319729274,177.11,8.1e-05,2]
[394143450,1763319729663,177.11,8.3e-05,2]
[394143451,1763319729961,177.11,8.5e-05,2]
[394143452,1763319730251,177.11,8.6e-05,2]
[394143453,1763319730558,177.11,8.8e-05,2]
[394143454,1763319730890,177.11,9e-05,2]
[394143455,1763319731224,177.11,9.1e-05,2]
[394143456,1763319731557,177.11,9.3e-05,2]
[394143457,1763319732130,177.11,9.5e-05,2]
[394143458,1763319732466,177.11,9.6e-05,2]
[394143459,1763319732792,177.11,9.8e-05,2]
[394143460,1763319733087,177.11,0.0001,2]
[394143461,1763319734370,177.11,0.000101,2]
[394143462,1763319734675,177.11,0.000103,2]
[394143463,1763319735044,177.11,0.000105,2]
[394143464,1763319735374,177.11,0.000106,2]
[394143465,1763319735692,177.11,0.000108,2]
[394143466,1763319735980,177.11,0.00011,2]
[394143467,1763319736307,177.11,0.000111,2]
[394143468,1763319736625,177.11,0.000113,2]
[394143469,1763319736948,177.11,0.000114,2]
[394143470,1763319737347,177.11,0.000116,2]
[394143471,1763319737651,177.11,0.000118,2]
[394143472,1763319737949,177.11,0.000119,2]
[394143473,1763319738225,177.11,0.000121,2]
[394143474,1763319738674,177.11,0.000123,2]
[394143475,1763319738960,177.11,0.000124,2]
[394143476,1763319739246,177.11,0.000126,2]
[394143477,1763319739523,177.11,0.000128,2]
[394143478,1763319739803,177.11,0.000129,2]
[394143479,1763319740160,177.11,0.000131,2]
[394143480,1763319782076,402.9,5e-05,2]
[394143481,1763319782412,402.9,5.2e-05,2]
[394143482,1763319782696,402.9,5.3e-05,2]
[394143483,1763319783008,402.9,5.5e-05,2]
[394143484,1763319783306,402.9,5.7e-05,2]
[394143485,1763319783640,402.9,5.8e-05,2]
[394143486,1763319783966,402.9,6e-05,2]
[394143487,1763319784259,402.9,6.2e-05,2]
[394143488,1763319784575,402.9,6.3e-05,2]
[394143489,1763319784821,402.9,6.5e-05,2]
[394143490,1763319785144,402.9,6.7e-05,2]
[394143491,1763319785425,402.9,6.8e-05,2]
[394143492,1763319785704,402.9,7e-05,2]
[394143493,1763319785981,402.9,7.1e-05,2]
[394143494,1763319786255,402.9,7.3e-05,2]
[394143495,1763319786521,348.177192,7.5e-05,2]
[394143496,1763319786549,54.722808,7.5e-05,2]
[394143497,1763319786795,402.9,7.6e-05,2]
[394143498,1763319787265,402.9,7.8e-05,2]
[394143499,1763319787415,402.9,8e-05,2]
[394143500,1763319787718,402.9,8.1e-05,2]
[394143501,1763319788009,402.9,8.3e-05,2]
[394143502,1763319788283,402.9,8.5e-05,2]
[394143503,1763319788550,402.9,8.6e-05,2]
[394143504,1763319788818,402.9,8.8e-05,2]
[394143505,1763319789103,402.9,9e-05,2]
[394143506,1763319789426,402.9,9.1e-05,2]
[394143507,1763319789755,402.9,9.3e-05,2]
[394143508,1763319790027,402.9,9.5e-05,2]
[394143509,1763319790314,402.9,9.6e-05,2]
[394143510,1763319790574,402.9,9.8e-05,2]
[394143511,1763319790849,402.9,0.0001,2]
[394143512,1763319791123,402.9,0.000101,2]
[394143513,1763319791396,402.9,0.000103,2]
[394143514,1763319791676,402.9,0.000105,2]
[394143515,1763319791974,402.9,0.000106,2]
[394143516,1763319792262,402.9,0.000108,2]
[394143517,1763319792534,402.9,0.00011,2]
[394143518,1763319792882,402.9,0.000111,2]
[394143519,1763319793300,402.9,0.000113,2]
[394143520,1763319793683,402.9,0.000114,2]
[394143521,1763319793968,402.9,0.000116,2]
[394143522,1763319794249,402.9,0.000118,2]
[394143523,1763319794525,402.9,0.000119,2]
[394143524,1763319794858,402.9,0.000121,2]
[394143525,1763319795221,402.9,0.000123,2]
[394143526,1763319795504,402.9,0.000124,2]
[394143527,1763319795781,402.9,0.000126,2]
[394143528,1763319796086,402.9,0.000128,2]
[394143529,1763319796406,402.9,0.000129,2]
[394143530,1763319796644,402.9,0.000131,2]
[394143531,1763319842289,153.06,5e-05,2]
[394143532,1763319842756,153.06,6.4e-05,2]
[394143533,1763319843041,153.06,7.7e-05,2]
[394143534,1763319843353,153.06,9.1e-05,2]
[394143535,1763319843645,153.06,0.000104,2]
[394143536,1763319844033,153.06,0.000118,2]
[394143537,1763319845348,2205.40741498,0.00032876,120]
[394143538,1763319848946,500.0,0.00038019,120]
[394143539,1763319848978,500.0,0.00038019,120]
[394143540,1763319849555,500.0,0.00038019,120]
[394143541,1763319849588,500.0,0.00038019,120]
[394143542,1763319850154,500.0,0.00038019,30]
[394143543,1763319850190,500.0,0.00038019,30]
[394143544,1763319850767,500.0,0.00038019,120]
[394143545,1763319850818,500.0,0.00038019,120]
[394143546,1763319851380,500.0,0.00038019,30]
[394143547,1763319851474,500.0,0.00038019,30]
[394143548,1763319852129,500.0,0.00038019,30]
[394143549,1763319852212,500.0,0.00038019,30]
[394143550,1763319852738,500.0,0.00038019,120]
[394143551,1763319852839,500.0,0.00038019,120]
[394143552,1763319853376,500.0,0.00038019,85]
[394143553,1763319853449,500.0,0.00038019,85]
[394143554,1763319854008,500.0,0.00038019,20]
[394143555,1763319854085,500.0,0.00038019,20]
[394143556,1763319854621,500.0,0.00038019,20]
[394143557,1763319854692,500.0,0.00038019,20]
[394143558,1763319855260,500.0,0.00038019,20]
[394143559,1763319855334,500.0,0.00038019,20]
[394143560,1763319855902,500.0,0.00038019,20]
[394143561,1763319855959,500.0,0.00038019,20]
[394143562,1763319856516,500.0,0.00038019,20]
[394143563,1763319856588,500.0,0.00038019,20]
[394143564,1763319857182,500.0,0.00038019,20]
[394143565,1763319857398,500.0,0.00038019,20]
[394143566,1763319857812,500.0,0.00038019,20]
[394143567,1763319858016,500.0,0.00038019,20]
[394143568,1763319858502,500.0,0.00038019,20]
[394143569,1763319858668,500.0,0.00038019,20]
[394143570,1763319859280,500.0,0.00038019,20]
[394143571,1763319859685,500.0,0.00038019,20]
[394143572,1763319859876,500.0,0.00038019,20]
[394143573,1763319860304,500.0,0.00038019,20]
[394143574,1763319860907,500.0,0.00038019,20]
[394143575,1763319861523,500.0,0.00038019,20]
[394143584,1763319901981,183.62,5e-05,2]
[394143585,1763319902267,144.697192,0.000131,2]
[394143586,1763319902298,38.922808,0.000131,2]
[394143595,1763319915148,400.59000004,0.00038019,120]
[394143596,1763319916790,500.0,0.00038019,120]
[394143597,1763319917406,500.0,0.00038019,120]
[394143598,1763319918063,500.0,0.00038019,120]
[394143599,1763319918637,500.0,0.00038019,120]
[394143600,1763319919243,500.0,0.00038019,120]
[394143601,1763319920003,500.0,0.00038019,120]
[394143602,1763319920522,500.0,0.00038019,120]
[394143603,1763319921134,500.0,0.00038019,120]
[394143604,1763319921741,500.0,0.00038019,120]
[394143605,1763319922357,500.0,0.00038019,120]
[394143608,1763320033950,8871.65413697,0.00038019,20]
[394143609,1763320119038,-1200.0,0.00019784,2]
[394143610,1763320119062,-300.0,0.00019983,2]
[394143611,1763320119088,-300.0,0.00019983,2]
[394143612,1763320119112,-985.0,0.00020187,2]
[394143613,1763320119137,-747.582808,0.00020187,2]
[394143614,1763320119160,-500.0,0.0002165,2]
[394143615,1763320119183,-300.0,0.0002165,2]
[394143616,1763320119207,-1401.0,0.00021651,2]
[394143617,1763320119232,-747.582808,0.00026676,2]
[394143618,1763320119256,-3198.64872226,0.00031188,2]
[394143619,1763320119281,-478.65,0.0003127,10]
[394143620,1763320119304,-398.88,0.0003127,10]
[394143621,1763320119329,-116793.201649,0.0003128,2]
[394143622,1763320119352,-189.27832639,0.00031288,2]
[394143623,1763320119377,-364.6431862,0.00031288,2]
[394143624,1763320119401,-500.0,0.00031288,2]
[394143625,1763320119424,-500.0,0.00031288,2]
[394143626,1763320119447,-500.0,0.00031288,2]
[394143627,1763320119472,-500.0,0.00031288,2]
[394143628,1763320119497,-500.0,0.00031288,2]
[394143629,1763320119528,-576.2378647,0.00031288,2]
[394143630,1763320119557,-500.0,0.00031288,2]
[394143631,1763320119582,-500.0,0.00031288,2]
[394143632,1763320119609,-500.0,0.00031288,2]
[394143633,1763320119633,-500.0,0.00031288,2]
[394143634,1763320119660,-500.0,0.00031288,2]
[394143635,1763320119684,-500.0,0.00031288,2]
[394143636,1763320119709,-500.0,0.00031288,2]
[394143637,1763320119734,-500.0,0.00031288,2]
[394143638,1763320119758,-500.0,0.00031288,2]
[394143639,1763320119785,-500.0,0.00031288,2]
[394143640,1763320119810,-500.0,0.00031288,2]
[394143641,1763320119833,-467.42395281,0.00031288,2]
[394143642,1763320119857,-500.0,0.00031288,2]
[394143643,1763320119881,-500.0,0.00031288,2]
[394143644,1763320119909,-500.0,0.00031288,2]
[394143645,1763320119935,-500.0,0.00031288,2]
[394143646,1763320119959,-500.0,0.00031288,2]
[394143647,1763320119985,-500.0,0.00031288,2]
[394143648,1763320120011,-500.0,0.00031288,2]
[394143649,1763320120035,-500.0,0.00031288,2]
[394143650,1763320120063,-500.0,0.00031288,2]
[394143651,1763320120088,-500.0,0.00031288,2]
[394143652,1763320120112,-500.0,0.00031288,2]
[394143653,1763320120136,-500.0,0.00031288,2]
[394143654,1763320120160,-500.0,0.00031288,2]
[394143655,1763320120187,-500.0,0.00031288,2]
[394143656,1763320120212,-500.0,0.00031288,2]
[394143657,1763320120238,-500.0,0.00031288,2]
[394143658,1763320120263,-500.0,0.00031288,2]
[394143659,1763320120438,-500.0,0.00031288,2]
[394143660,1763320120471,-500.0,0.00031288,2]
[394143661,1763320120495,-600.0,0.00031288,2]
[394143662,1763320120520,-500.0,0.00031288,2]
[394143663,1763320120547,-500.0,0.00031288,2]
[394143664,1763320120575,-500.0,0.00031288,2]
[394143665,1763320120600,-500.0,0.00031288,2]
[394143666,1763320120626,-500.0,0.00031288,2]
[394143667,1763320120659,-500.0,0.00031288,2]
[394143668,1763320120683,-500.0,0.00031288,2]
[394143669,1763320120707,-500.0,0.00031288,2]
[394143670,1763320120731,-598.99066507,0.00031288,2]
[394143671,1763320120754,-500.0,0.00031288,2]
[394143672,1763320120781,-500.0,0.00031288,2]
[394143673,1763320120805,-500.0,0.00031288,2]
[394143674,1763320120828,-500.0,0.00031288,2]
[394143675,1763320120852,-500.0,0.00031288,2]
[394143676,1763320120877,-500.0,0.00031288,2]
[394143677,1763320120903,-500.0,0.00031288,2]
[394143678,1763320120925,-500.0,0.00031288,2]
[394143679,1763320120949,-500.0,0.00031288,2]
[394143680,1763320120972,-500.0,0.00031288,2]
[394143681,1763320120996,-500.0,0.00031288,2]
[394143682,1763320121023,-500.0,0.00031288,2]
[394143683,1763320121046,-500.0,0.00031288,2]
[394143684,1763320121070,-500.0,0.00031288,2]
[394143685,1763320121096,-500.0,0.00031288,2]
[394143686,1763320121120,-500.0,0.00031288,2]
[394143687,1763320121144,-500.0,0.00031288,2]
[394143688,1763320121168,-500.0,0.00031288,2]
[394143689,1763320121196,-500.0,0.00031288,2]
[394143690,1763320121220,-500.0,0.00031288,2]
[394143691,1763320121244,-500.0,0.00031288,2]
[394143692,1763320121269,-500.0,0.00031288,2]
[394143693,1763320121296,-500.0,0.00031288,2]
[394143694,1763320121321,-500.0,0.00031288,2]
[394143695,1763320121346,-500.0,0.00031288,2]
[394143696,1763320121371,-500.0,0.00031288,2]
[394143697,1763320121397,-500.0,0.00031288,2]
[394143698,1763320121422,-500.0,0.00031288,2]
[394143699,1763320121448,-500.0,0.00031288,2]
[394143700,1763320121472,-500.0,0.00031288,2]
[394143701,1763320121497,-500.0,0.00031288,2]
[394143702,1763320121524,-500.0,0.00031288,2]
[394143703,1763320121549,-500.0,0.00031288,2]
[394143704,1763320121576,-500.0,0.00031288,2]
[394143705,1763320121615,-500.0,0.00031288,2]
[394143706,1763320121640,-500.0,0.00031288,2]
[394143707,1763320121666,-500.0,0.00031288,2]
[394143708,1763320121694,-500.0,0.00031288,2]
[394143709,1763320121720,-500.0,0.00031288,2]
[394143710,1763320121746,-500.0,0.00031288,2]
[394143711,1763320121772,-500.0,0.00031288,2]
[394143712,1763320121797,-500.0,0.00031288,2]
[394143713,1763320121823,-171.20571146,0.00031288,2]
[394143714,1763320121849,-500.0,0.00031288,2]
[394143715,1763320121874,-500.0,0.00031288,2]
[394143716,1763320121899,-500.0,0.00031288,2]
[394143717,1763320121924,-500.0,0.00031288,2]
[394143718,1763320121950,-500.0,0.00031288,2]
[394143719,1763320121976,-500.0,0.00031288,2]
[394143720,1763320122000,-500.0,0.00031288,2]
[394143721,1763320122026,-500.0,0.00031288,2]
[394143722,1763320122049,-650.0,0.00031288,2]
[394143723,1763320122076,-500.0,0.00031288,2]
[394143724,1763320122114,-500.0,0.00031288,2]
[394143725,1763320122148,-500.0,0.00031288,2]
[394143726,1763320122181,-500.0,0.00031288,2]
[394143727,1763320122212,-500.0,0.00031288,2]
[394143728,1763320122247,-500.0,0.00031288,2]
[394143729,1763320122276,-500.0,0.00031288,2]
[394143730,1763320122310,-500.0,0.00031288,2]
[394143731,1763320122342,-500.0,0.00031288,2]
[394143732,1763320122373,-500.0,0.00031288,2]
[394143733,1763320122402,-500.0,0.00031288,2]
[394143734,1763320122432,-500.0,0.00031288,2]
[394143735,1763320122462,-500.0,0.00031288,2]
[394143736,1763320122492,-500.0,0.00031288,2]
[394143737,1763320122525,-500.0,0.00031288,2]
[394143738,1763320122557,-500.0,0.00031288,2]
[394143739,1763320122587,-500.0,0.00031288,2]
[394143740,1763320122616,-500.0,0.00031288,2]
[394143741,1763320122645,-500.0,0.00031288,2]
[394143742,1763320122674,-500.0,0.00031288,2]
[394143743,1763320122706,-500.0,0.00031288,2]
[394143744,1763320122735,-500.0,0.00031288,2]
[394143745,1763320122764,-500.0,0.00031288,2]
[394143746,1763320122795,-500.0,0.00031288,2]
[394143747,1763320122824,-500.0,0.00031288,2]
[394143748,1763320122853,-500.0,0.00031288,2]
[394143749,1763320122882,-500.0,0.00031288,2]
[394143750,1763320122908,-500.0,0.00031288,2]
[394143751,1763320122934,-500.0,0.00031288,2]
[394143752,1763320122962,-500.0,0.00031288,2]
[394143753,1763320122990,-500.0,0.00031288,2]
[394143754,1763320123018,-500.0,0.00031288,2]
[394143755,1763320123047,-550.0,0.00031288,2]
[394143756,1763320123075,-500.0,0.00031288,2]
[394143757,1763320123103,-500.0,0.00031288,2]
[394143758,1763320123134,-500.0,0.00031288,2]
[394143759,1763320123164,-500.0,0.00031288,2]
[394143760,1763320123195,-500.0,0.00031288,2]
[394143761,1763320123225,-500.0,0.00031288,2]
[394143762,1763320123256,-500.0,0.00031288,2]
[394143763,1763320123284,-500.0,0.00031288,2]
[394143764,1763320123313,-500.0,0.00031288,2]
[394143765,1763320123341,-500.0,0.00031288,2]
[394143766,1763320123366,-16970.649968,0.0003129,2]
[394143767,1763320172742,591.92,0.0001765,2]
[394143768,1763320172762,294.0,0.0001765,2]
[394143769,1763320172793,2836.11,0.0001765,2]
[394143800,1763320232536,-150.0,0.00030179,35]
[394143803,1763320232546,-150.0,0.00030265,39]
[394143805,1763320232555,-150.0,0.00030436,46]
[394143807,1763320232565,-150.0,0.00030521,50]
[394143809,1763320232575,-150.0,0.00030606,54]
[394143811,1763320232586,-150.0,0.00030692,57]
[394143813,1763320232596,-150.0,0.00030777,61]
[394143814,1763320232606,-150.0,0.00030863,65]
[394143816,1763320232619,-150.0,0.00030948,69]
[394143818,1763320232629,-150.0,0.00031033,72]
[394143820,1763320232639,-150.0,0.00031119,76]
[394143822,1763320232649,-150.0,0.00031204,80]
[394143823,1763320232661,-150.0,0.0003129,83]
[394143824,1763320232672,-111.38036301,0.00031375,87]
[394143827,1763320232690,-38.61963699,0.00031375,87]
[394143829,1763320232699,-150.0,0.0003146,91]
[394143830,1763320232712,-150.0,0.00031546,95]
[394143831,1763320232722,-151.0,0.00031562,2]
[394143832,1763320232731,-304.9456913,0.00031562,2]
[394143833,1763320232740,-150.0,0.00031631,98]
[394143834,1763320232750,-150.0,0.00031717,102]
[394143835,1763320232759,-150.0,0.00031802,106]
[394143836,1763320232769,-150.0,0.00031888,110]
[394143837,1763320232778,-842.85,0.00033148,2]
[394143838,1763320232787,-385.7977583,0.00033165,2]
[394143851,1763320238367,-361.7850497,0.00033165,2]
[394143853,1763320238378,-138.2149503,0.00033173,7]
[394144035,1763320240515,-361.7850497,0.00033173,7]
[394144036,1763320240525,-18.45805842,0.00033198,117]
[394144146,1763320242149,-131.54194158,0.00033198,117]
[394144148,1763320242160,-150.0,0.00034352,6]
[394144150,1763320242171,-150.0,0.00034998,13]
[394144152,1763320242181,-150.0,0.00035121,75]
[394144154,1763320242192,-150.0,0.00035298,17]
[394144156,1763320242202,-150.0,0.00035916,16]
[394144158,1763320242212,-500.0,0.00036161,15]
[394144161,1763320242232,-500.0,0.00036161,7]
[394144163,1763320242242,-500.0,0.00036161,15]
[394144165,1763320242252,-500.0,0.00036161,15]
[394144167,1763320242261,-500.0,0.00036161,15]
[394144169,1763320242272,-500.0,0.00036161,7]
[394144171,1763320242281,-551.93599476,0.00036161,15]
[394144172,1763320242291,-455.44340723,0.00036161,15]
[394144174,1763320242300,-350.0,0.00036161,15]
[394144176,1763320242310,-400.0,0.00036161,15]
[394144179,1763320242320,-500.0,0.00036161,7]
[394144181,1763320242330,-500.0,0.00036161,7]
[394144182,1763320242341,-500.0,0.00036161,7]
[394144184,1763320242351,-622.12057115,0.00036161,7]
[394144186,1763320242362,-500.0,0.00036161,7]
[394144188,1763320242372,-500.0,0.00036161,7]
[394144190,1763320242382,-150.0,0.00036162,90]
[394144192,1763320242392,-1685.69,0.00036162,2]
[394144194,1763320242402,-150.0,0.00036635,8]
[394144196,1763320242412,-1692.69388927,0.00037353,2]
[394144199,1763320242428,-1505.95483297,0.00037353,2]
[394144201,1763320242438,-150.0,0.00037777,9]
[394144203,1763320242447,-150.0,0.00037798,25]
[394144205,1763320242456,-150.0,0.00037826,42]
[394144207,1763320242471,-500.0,0.00037934,2]
[394144209,1763320242480,-500.0,0.00038003,14]
[394144211,1763320242489,-150.0,0.00038016,31]
[394144213,1763320242499,-150.0,0.00038018,85]
[394144215,1763320242508,-2500.0,0.00038019,20]
[394144217,1763320242517,-5000.0,0.00038019,20]
[394144219,1763320242526,-5000.0,0.00038019,20]
[394144221,1763320242535,-5000.0,0.00038019,20]
[394144223,1763320242546,-150.0,0.00038498,12]
[394144225,1763320242555,-150.0,0.00038537,15]
[394144227,1763320242564,-500.0,0.0003903,2]
[394144229,1763320242575,-1427.02305508,0.00039175,2]
[394144231,1763320242586,-500.0,0.00039175,2]
[394144357,1763320243798,-601.51694492,0.00039175,2]
[394144359,1763320243809,-166.48782922,0.000392,120]
[394144361,1763320243818,-166.48782922,0.000392,120]
[394144363,1763320243828,-150.0,0.00039298,24]
[394144365,1763320243838,-747.582808,0.00039654,2]
[394144367,1763320243847,-150.0,0.00039798,5]
[394144369,1763320243857,-500.0,0.00040126,2]
[394144371,1763320243867,-250.0,0.00041002,20]
[394144373,1763320243876,-500.0,0.00041222,2]